[Event "January 2 Early 2024"]
[Site "https://www.chess.com"]
[Date "2024.01.02"]
[Round "1"]
[White "Garagulya, Konstantin"]
[Black "Kuzubov, Yuriy"]
[Result "0-1"]
[Board "82"]
[TimeControl "180+1"]
[WhiteFideId "4128931"]
[BlackFideId "14112906"]
[WhiteElo "2460"]
[BlackElo "2873"]
[WhiteTeam "RUS"]
[BlackTeam "UKR"]
[WhiteClock "0:00:31"]
[BlackClock "0:00:19"]

1. d4 {[%clk 0:02:48]}  Nf6 {[%clk 0:02:59]} 2. Nf3 {[%clk 0:02:42]}  e6 {[%clk 0:02:59]} 3. Bg5 {[%clk 0:02:41]}  h6 {[%clk 0:02:59]} 4. Bh4 {[%clk 0:02:40]}  c5 {[%clk 0:02:56]} 5. Nbd2 {[%clk 0:02:40]}  cxd4 {[%clk 0:02:55]} 6. Nxd4 {[%clk 0:02:41]}  d5 {[%clk 0:02:48]} 7. e3 {[%clk 0:02:41]}  Be7 {[%clk 0:02:47]} 8. c4 {[%clk 0:02:34]}  O-O {[%clk 0:02:38]} 9. Be2 {[%clk 0:02:27]}  e5 {[%clk 0:02:36]} 10. N4f3 {[%clk 0:02:26]}  Nc6 {[%clk 0:02:36]} 11. cxd5 {[%clk 0:02:26]}  Nxd5 {[%clk 0:02:35]} 12. Bxe7 {[%clk 0:02:25]}  Qxe7 {[%clk 0:02:36]} 13. O-O {[%clk 0:02:26]}  Rd8 {[%clk 0:02:33]} 14. Qa4 {[%clk 0:02:21]}  Nb6 {[%clk 0:02:27]} 15. Qc2 {[%clk 0:02:20]}  Be6 {[%clk 0:02:18]} 16. Rac1 {[%clk 0:02:11]}  Rac8 {[%clk 0:02:12]} 17. Qb1 {[%clk 0:02:08]}  Bg4 {[%clk 0:01:57]} 18. a3 {[%clk 0:01:54]}  Rxd2 {[%clk 0:01:56]} 19. Nxd2 {[%clk 0:01:52]}  Bxe2 {[%clk 0:01:57]} 20. Rfe1 {[%clk 0:01:52]}  Bg4 {[%clk 0:01:55]} 21. b4 {[%clk 0:01:49]}  Rd8 {[%clk 0:01:55]} 22. Nc4 {[%clk 0:01:47]}  Nxc4 {[%clk 0:01:53]} 23. Rxc4 {[%clk 0:01:48]}  Be6 {[%clk 0:01:45]} 24. Rc5 {[%clk 0:01:49]}  Qd6 {[%clk 0:01:38]} 25. h3 {[%clk 0:01:47]}  Ne7 {[%clk 0:01:27]} 26. Rec1 {[%clk 0:01:44]}  g5 {[%clk 0:01:15]} 27. Qe4 {[%clk 0:01:43]}  Bd5 {[%clk 0:01:11]} 28. Qc2 {[%clk 0:01:43]}  b6 {[%clk 0:00:57]} 29. Rc3 {[%clk 0:01:37]}  Ba8 {[%clk 0:00:53]} 30. f3 {[%clk 0:01:34]}  e4 {[%clk 0:00:50]} 31. fxe4 {[%clk 0:01:33]}  Qe5 {[%clk 0:00:49]} 32. Rc4 {[%clk 0:01:33]}  Kg7 {[%clk 0:00:46]} 33. Qc3 {[%clk 0:01:33]}  Ng6 {[%clk 0:00:46]} 34. Qxe5+ {[%clk 0:01:29]}  Nxe5 {[%clk 0:00:46]} 35. Rd4 {[%clk 0:01:30]}  Re8 {[%clk 0:00:42]} 36. Rc7 {[%clk 0:01:30]}  a6 {[%clk 0:00:38]} 37. Rd6 {[%clk 0:01:20]}  Bxe4 {[%clk 0:00:34]} 38. Rxb6 {[%clk 0:01:20]}  Rd8 {[%clk 0:00:35]} 39. Rxa6 {[%clk 0:01:15]}  Rd1+ {[%clk 0:00:27]} 40. Kf2 {[%clk 0:01:15]}  Rd2+ {[%clk 0:00:27]} 41. Ke1 {[%clk 0:01:15]}  Rxg2 {[%clk 0:00:27]} 42. Re7 {[%clk 0:01:16]}  Nf3+ {[%clk 0:00:20]} 43. Kf1 {[%clk 0:01:09]}  Ra2 {[%clk 0:00:19]} 44. Rd6 {[%clk 0:00:31]}  Bf5 {[%clk 0:00:19]} 0-1

[Event "January 2 Early 2024"]
[Site "https://www.chess.com"]
[Date "2024.01.02"]
[Round "1"]
[White "Reprintsev, Alexander"]
[Black "Maksimovic, Bojan"]
[Result "0-1"]
[Board "86"]
[TimeControl "180+1"]
[WhiteFideId "14100541"]
[BlackFideId "14408120"]
[WhiteElo "2458"]
[BlackElo "2865"]
[WhiteTeam "UKR"]
[BlackTeam "BIH"]
[WhiteClock "0:01:38"]
[BlackClock "0:00:36"]

1. e4 {[%clk 0:03:00]}  a6 {[%clk 0:02:57]} 2. f4 {[%clk 0:02:59]}  e6 {[%clk 0:02:57]} 3. Nf3 {[%clk 0:02:59]}  d5 {[%clk 0:02:57]} 4. e5 {[%clk 0:02:55]}  c5 {[%clk 0:02:54]} 5. c3 {[%clk 0:02:53]}  d4 {[%clk 0:02:31]} 6. Bd3 {[%clk 0:02:49]}  Nc6 {[%clk 0:02:28]} 7. Be4 {[%clk 0:02:48]}  Nge7 {[%clk 0:02:25]} 8. Qe2 {[%clk 0:02:47]}  Nd5 {[%clk 0:01:48]} 9. d3 {[%clk 0:02:47]}  Bd7 {[%clk 0:01:48]} 10. O-O {[%clk 0:02:46]}  Be7 {[%clk 0:01:49]} 11. a3 {[%clk 0:02:46]}  O-O {[%clk 0:01:49]} 12. c4 {[%clk 0:02:46]}  Nc7 {[%clk 0:01:49]} 13. h3 {[%clk 0:02:39]}  f5 {[%clk 0:01:48]} 14. exf6 {[%clk 0:02:39]}  Bxf6 {[%clk 0:01:49]} 15. Bd2 {[%clk 0:02:34]}  b5 {[%clk 0:01:48]} 16. b4 {[%clk 0:02:31]}  bxc4 {[%clk 0:01:44]} 17. bxc5 {[%clk 0:02:30]}  c3 {[%clk 0:01:43]} 18. Bc1 {[%clk 0:02:27]}  Rb8 {[%clk 0:01:35]} 19. a4 {[%clk 0:02:25]}  Qe7 {[%clk 0:01:32]} 20. Ba3 {[%clk 0:02:23]}  Nd5 {[%clk 0:01:27]} 21. Bxd5 {[%clk 0:02:21]}  exd5 {[%clk 0:01:28]} 22. Qxe7 {[%clk 0:02:19]}  Bxe7 {[%clk 0:01:28]} 23. Nxd4 {[%clk 0:02:14]}  Nxd4 {[%clk 0:01:24]} 24. Nxc3 {[%clk 0:02:14]}  Bc6 {[%clk 0:01:11]} 25. Rae1 {[%clk 0:02:08]}  Bf6 {[%clk 0:01:07]} 26. Ne2 {[%clk 0:02:06]}  Rb3 {[%clk 0:01:04]} 27. Bc1 {[%clk 0:02:03]}  Rxd3 {[%clk 0:00:57]} 28. Kh2 {[%clk 0:01:56]}  Nxe2 {[%clk 0:00:45]} 29. Rxe2 {[%clk 0:01:56]}  Bxa4 {[%clk 0:00:45]} 30. Re6 {[%clk 0:01:51]}  Bb5 {[%clk 0:00:44]} 31. Rfe1 {[%clk 0:01:50]}  Rc3 {[%clk 0:00:39]} 32. Be3 {[%clk 0:01:48]}  d4 {[%clk 0:00:37]} 33. Rxf6 {[%clk 0:01:48]}  gxf6 {[%clk 0:00:37]} 34. Bxd4 {[%clk 0:01:38]}  Rc4 {[%clk 0:00:36]} 0-1

[Event "January 2 Early 2024"]
[Site "https://www.chess.com"]
[Date "2024.01.02"]
[Round "1"]
[White "Remizov, Yaroslav"]
[Black "Srebrnic, Marko"]
[Result "0-1"]
[Board "87"]
[TimeControl "180+1"]
[WhiteFideId "34134015"]
[BlackFideId "14603616"]
[WhiteElo "2862"]
[BlackElo "2457"]
[WhiteTeam "RUS"]
[BlackTeam "SLO"]
[WhiteClock "0:00:50"]
[BlackClock "0:00:44"]

1. d4 {[%clk 0:03:00]}  Nf6 {[%clk 0:02:58]} 2. g3 {[%clk 0:02:57]}  d6 {[%clk 0:02:43]} 3. Nf3 {[%clk 0:02:51]}  g6 {[%clk 0:02:41]} 4. b3 {[%clk 0:02:48]}  Bg7 {[%clk 0:02:41]} 5. Bb2 {[%clk 0:02:48]}  O-O {[%clk 0:02:41]} 6. Bg2 {[%clk 0:02:47]}  e5 {[%clk 0:02:41]} 7. dxe5 {[%clk 0:02:47]}  Ng4 {[%clk 0:02:41]} 8. O-O {[%clk 0:02:43]}  Nxe5 {[%clk 0:02:40]} 9. Nxe5 {[%clk 0:02:43]}  dxe5 {[%clk 0:02:40]} 10. c4 {[%clk 0:02:42]}  c6 {[%clk 0:02:29]} 11. Nc3 {[%clk 0:02:41]}  Bf5 {[%clk 0:02:24]} 12. Ne4 {[%clk 0:02:19]}  Bxe4 {[%clk 0:01:50]} 13. Bxe4 {[%clk 0:02:20]}  Na6 {[%clk 0:01:47]} 14. Qc2 {[%clk 0:02:09]}  Qe7 {[%clk 0:01:43]} 15. Rad1 {[%clk 0:02:06]}  Rfd8 {[%clk 0:01:41]} 16. a3 {[%clk 0:02:05]}  Nc5 {[%clk 0:01:35]} 17. Bg2 {[%clk 0:02:05]}  a5 {[%clk 0:01:29]} 18. Bc3 {[%clk 0:01:57]}  a4 {[%clk 0:01:22]} 19. b4 {[%clk 0:01:54]}  Nb3 {[%clk 0:01:19]} 20. e3 {[%clk 0:01:52]}  Qe6 {[%clk 0:01:11]} 21. Qe2 {[%clk 0:01:39]}  e4 {[%clk 0:01:05]} 22. Bxg7 {[%clk 0:01:35]}  Kxg7 {[%clk 0:01:05]} 23. Qc2 {[%clk 0:01:28]}  f5 {[%clk 0:01:01]} 24. Rfe1 {[%clk 0:01:13]}  Qe5 {[%clk 0:00:55]} 25. Bf1 {[%clk 0:01:11]}  b6 {[%clk 0:00:48]} 26. h4 {[%clk 0:00:50]}  c5 {[%clk 0:00:44]} 0-1

[Event "January 2 Early 2024"]
[Site "https://www.chess.com"]
[Date "2024.01.02"]
[Round "1"]
[White "Beerdsen, Thomas"]
[Black "Luong Phuong Hanh"]
[Result "1-0"]
[Board "89"]
[TimeControl "180+1"]
[WhiteFideId "1030108"]
[BlackFideId "12401013"]
[WhiteElo "2854"]
[BlackElo "2453"]
[WhiteTeam "NED"]
[BlackTeam "VIE"]
[WhiteClock "0:02:44"]
[BlackClock "0:02:07"]

1. e4 {[%clk 0:03:00]}  c5 {[%clk 0:02:40]} 2. Nf3 {[%clk 0:03:00]}  e6 {[%clk 0:02:39]} 3. d4 {[%clk 0:03:01]}  cxd4 {[%clk 0:02:40]} 4. Bg5 {[%clk 0:03:01]}  Be7 {[%clk 0:02:38]} 5. Bxe7 {[%clk 0:03:01]}  Nxe7 {[%clk 0:02:38]} 6. Qxd4 {[%clk 0:03:02]}  O-O {[%clk 0:02:38]} 7. Qd6 {[%clk 0:03:02]}  Nbc6 {[%clk 0:02:35]} 8. Nc3 {[%clk 0:03:02]}  Qb6 {[%clk 0:02:34]} 9. O-O-O {[%clk 0:03:01]}  Ng6 {[%clk 0:02:32]} 10. h4 {[%clk 0:03:01]}  Nb4 {[%clk 0:02:32]} 11. h5 {[%clk 0:02:57]}  Qxd6 {[%clk 0:02:31]} 12. Rxd6 {[%clk 0:02:58]}  Ne7 {[%clk 0:02:29]} 13. h6 {[%clk 0:02:58]}  g6 {[%clk 0:02:28]} 14. Bb5 {[%clk 0:02:55]}  a6 {[%clk 0:02:27]} 15. Bxd7 {[%clk 0:02:54]}  Nec6 {[%clk 0:02:21]} 16. a3 {[%clk 0:02:51]}  Bxd7 {[%clk 0:02:20]} 17. Rxd7 {[%clk 0:02:52]}  Nb8 {[%clk 0:02:20]} 18. Rxb7 {[%clk 0:02:53]}  N4c6 {[%clk 0:02:21]} 19. Rd1 {[%clk 0:02:53]}  Na5 {[%clk 0:02:20]} 20. Rc7 {[%clk 0:02:53]}  Nac6 {[%clk 0:02:14]} 21. Rd6 {[%clk 0:02:50]}  Na7 {[%clk 0:02:12]} 22. Ne5 {[%clk 0:02:47]}  Nb5 {[%clk 0:02:12]} 23. Nxb5 {[%clk 0:02:44]}  axb5 {[%clk 0:02:13]} 24. Rb7 {[%clk 0:02:42]}  Na6 {[%clk 0:02:10]} 25. Rxb5 {[%clk 0:02:41]}  Nc7 {[%clk 0:02:09]} 26. Rb7 {[%clk 0:02:42]}  Ne8 {[%clk 0:02:09]} 27. Rdd7 {[%clk 0:02:42]}  Nf6 {[%clk 0:02:10]} 28. Rxf7 {[%clk 0:02:43]}  Rxf7 {[%clk 0:02:10]} 29. Rxf7 {[%clk 0:02:44]}  Nxe4 {[%clk 0:02:07]} 30. Rg7+ {[%clk 0:02:44]} 1-0

[Event "January 2 Early 2024"]
[Site "https://www.chess.com"]
[Date "2024.01.02"]
[Round "1"]
[White "Kostic, Vladimir V"]
[Black "Rustemov, Alexander"]
[Result "0-1"]
[Board "90"]
[TimeControl "180+1"]
[WhiteFideId "903620"]
[BlackFideId "4119002"]
[WhiteElo "2452"]
[BlackElo "2852"]
[WhiteTeam "SRB"]
[BlackTeam "RUS"]
[WhiteClock "0:00:01"]
[BlackClock "0:01:12"]

1. e4 {[%clk 0:03:00]}  e6 {[%clk 0:03:00]} 2. d4 {[%clk 0:03:00]}  d5 {[%clk 0:03:00]} 3. Nc3 {[%clk 0:03:01]}  dxe4 {[%clk 0:03:01]} 4. Nxe4 {[%clk 0:02:59]}  Bd7 {[%clk 0:03:01]} 5. Nf3 {[%clk 0:03:00]}  Bc6 {[%clk 0:03:02]} 6. Bd3 {[%clk 0:02:58]}  Nd7 {[%clk 0:02:57]} 7. O-O {[%clk 0:02:54]}  Ngf6 {[%clk 0:02:57]} 8. Nxf6+ {[%clk 0:02:42]}  Qxf6 {[%clk 0:02:56]} 9. c3 {[%clk 0:02:43]}  Bxf3 {[%clk 0:02:56]} 10. Qxf3 {[%clk 0:02:34]}  Qxf3 {[%clk 0:02:56]} 11. gxf3 {[%clk 0:02:35]}  Nf6 {[%clk 0:02:56]} 12. Bf4 {[%clk 0:02:18]}  Bd6 {[%clk 0:02:55]} 13. Bg3 {[%clk 0:02:18]}  Nh5 {[%clk 0:02:51]} 14. Rfe1 {[%clk 0:02:10]}  O-O-O {[%clk 0:02:48]} 15. Bf1 {[%clk 0:02:05]}  g6 {[%clk 0:02:47]} 16. Rad1 {[%clk 0:01:55]}  c6 {[%clk 0:02:46]} 17. a4 {[%clk 0:01:37]}  a5 {[%clk 0:02:44]} 18. Bc4 {[%clk 0:01:17]}  Rd7 {[%clk 0:02:42]} 19. Re4 {[%clk 0:01:03]}  Rhd8 {[%clk 0:02:41]} 20. Rde1 {[%clk 0:01:02]}  Kc7 {[%clk 0:02:39]} 21. Bh4 {[%clk 0:00:55]}  Be7 {[%clk 0:02:35]} 22. Bg3+ {[%clk 0:00:54]}  Bd6 {[%clk 0:02:36]} 23. Bh4 {[%clk 0:00:54]}  Rb8 {[%clk 0:02:34]} 24. Bb3 {[%clk 0:00:52]}  h6 {[%clk 0:02:33]} 25. Bg3 {[%clk 0:00:49]}  g5 {[%clk 0:02:31]} 26. R1e2 {[%clk 0:00:46]}  Nf4 {[%clk 0:02:31]} 27. Rd2 {[%clk 0:00:43]}  Rbd8 {[%clk 0:02:30]} 28. Kf1 {[%clk 0:00:41]}  Nd5 {[%clk 0:02:25]} 29. h4 {[%clk 0:00:38]}  Rg8 {[%clk 0:02:22]} 30. c4 {[%clk 0:00:32]}  Nb4 {[%clk 0:02:17]} 31. Re1 {[%clk 0:00:20]}  Rgd8 {[%clk 0:02:15]} 32. Red1 {[%clk 0:00:20]}  Bxg3 {[%clk 0:02:07]} 33. fxg3 {[%clk 0:00:20]}  e5 {[%clk 0:02:06]} 34. hxg5 {[%clk 0:00:18]}  hxg5 {[%clk 0:02:06]} 35. d5 {[%clk 0:00:19]}  cxd5 {[%clk 0:02:03]} 36. cxd5 {[%clk 0:00:20]}  Kd6 {[%clk 0:02:03]} 37. Kg2 {[%clk 0:00:19]}  Rh8 {[%clk 0:01:59]} 38. Re1 {[%clk 0:00:17]}  f6 {[%clk 0:01:57]} 39. Rc1 {[%clk 0:00:16]}  Rdh7 {[%clk 0:01:45]} 40. Rcd1 {[%clk 0:00:14]}  f5 {[%clk 0:01:43]} 41. Kf2 {[%clk 0:00:12]}  f4 {[%clk 0:01:42]} 42. Rg1 {[%clk 0:00:09]}  Rh2+ {[%clk 0:01:38]} 43. Rg2 {[%clk 0:00:09]}  fxg3+ {[%clk 0:01:31]} 44. Kxg3 {[%clk 0:00:09]}  R2h3+ {[%clk 0:01:30]} 45. Kf2 {[%clk 0:00:08]}  Rf8 {[%clk 0:01:31]} 46. Bd1 {[%clk 0:00:08]}  Rf5 {[%clk 0:01:27]} 47. Be2 {[%clk 0:00:07]}  e4 {[%clk 0:01:20]} 48. Rg4 {[%clk 0:00:07]}  exf3 {[%clk 0:01:16]} 49. Bf1 {[%clk 0:00:07]}  Rh2+ {[%clk 0:01:16]} 50. Ke3 {[%clk 0:00:07]}  Re5+ {[%clk 0:01:13]} 51. Kxf3 {[%clk 0:00:03]}  Rxd2 {[%clk 0:01:12]} 52. Rxg5 {[%clk 0:00:01]}  Rxg5 {[%clk 0:01:12]} 0-1

[Event "January 2 Early 2024"]
[Site "https://www.chess.com"]
[Date "2024.01.02"]
[Round "1"]
[White "Gatterer, Florian"]
[Black "Materia, Marco"]
[Result "0-1"]
[Board "92"]
[TimeControl "180+1"]
[WhiteFideId "811688"]
[BlackFideId "45150451"]
[WhiteElo "2450"]
[BlackElo "2844"]
[WhiteTeam "ITA"]
[BlackTeam "FRA"]
[WhiteClock "0:00:00"]
[BlackClock "0:00:54"]

1. d4 {[%clk 0:03:00]}  Nf6 {[%clk 0:02:59]} 2. Bg5 {[%clk 0:02:58]}  d5 {[%clk 0:02:55]} 3. e3 {[%clk 0:02:58]}  e6 {[%clk 0:02:54]} 4. Nd2 {[%clk 0:02:57]}  Be7 {[%clk 0:02:53]} 5. Ngf3 {[%clk 0:02:56]}  c5 {[%clk 0:02:50]} 6. c3 {[%clk 0:02:56]}  Nc6 {[%clk 0:02:50]} 7. Bb5 {[%clk 0:02:45]}  O-O {[%clk 0:02:48]} 8. O-O {[%clk 0:02:40]}  Qb6 {[%clk 0:02:44]} 9. Qa4 {[%clk 0:02:38]}  h6 {[%clk 0:02:35]} 10. Bh4 {[%clk 0:02:37]}  Bd7 {[%clk 0:02:30]} 11. Rab1 {[%clk 0:02:06]}  a6 {[%clk 0:02:26]} 12. Bxc6 {[%clk 0:02:06]}  Bxc6 {[%clk 0:02:23]} 13. Qc2 {[%clk 0:02:03]}  Rfc8 {[%clk 0:02:16]} 14. Rfc1 {[%clk 0:01:56]}  Be8 {[%clk 0:02:09]} 15. Qd1 {[%clk 0:01:49]}  cxd4 {[%clk 0:02:02]} 16. exd4 {[%clk 0:01:48]}  Qd8 {[%clk 0:01:57]} 17. Ne5 {[%clk 0:01:41]}  b5 {[%clk 0:01:56]} 18. a3 {[%clk 0:01:40]}  a5 {[%clk 0:01:55]} 19. h3 {[%clk 0:01:23]}  b4 {[%clk 0:01:54]} 20. axb4 {[%clk 0:01:23]}  axb4 {[%clk 0:01:54]} 21. Qf3 {[%clk 0:00:53]}  Ra2 {[%clk 0:01:45]} 22. Bxf6 {[%clk 0:00:47]}  Bxf6 {[%clk 0:01:43]} 23. cxb4 {[%clk 0:00:43]}  Rxb2 {[%clk 0:01:39]} 24. Rxb2 {[%clk 0:00:18]}  Rxc1+ {[%clk 0:01:38]} 25. Kh2 {[%clk 0:00:18]}  Qc7 {[%clk 0:01:27]} 26. Qe3 {[%clk 0:00:18]}  Be7 {[%clk 0:01:23]} 27. g3 {[%clk 0:00:16]}  Rc3 {[%clk 0:01:16]} 28. Qe2 {[%clk 0:00:14]}  Qb6 {[%clk 0:01:12]} 29. Ndf3 {[%clk 0:00:09]}  f6 {[%clk 0:01:06]} 30. Nd3 {[%clk 0:00:09]}  Bb5 {[%clk 0:01:05]} 31. Rd2 {[%clk 0:00:07]}  Bxb4 {[%clk 0:01:04]} 32. Qd1 {[%clk 0:00:07]}  Bd6 {[%clk 0:01:00]} 33. Nc5 {[%clk 0:00:07]}  Bxc5 {[%clk 0:00:59]} 34. dxc5 {[%clk 0:00:07]}  Qxc5 {[%clk 0:00:59]} 35. Rb2 {[%clk 0:00:07]}  e5 {[%clk 0:00:57]} 36. Qe1 {[%clk 0:00:07]}  Rxf3 {[%clk 0:00:56]} 37. Qb1 {[%clk 0:00:06]}  Rxf2+ {[%clk 0:00:55]} 38. Kh1 {[%clk 0:00:06]}  Rf1+ {[%clk 0:00:55]} 39. Kh2 {[%clk 0:00:00]}  Rxb1 {[%clk 0:00:54]} 0-1

[Event "January 2 Early 2024"]
[Site "https://www.chess.com"]
[Date "2024.01.02"]
[Round "1"]
[White "Durarbayli, Vasif"]
[Black "Mohammadi, Melika"]
[Result "1-0"]
[Board "93"]
[TimeControl "180+1"]
[WhiteFideId "13402935"]
[BlackFideId "42529271"]
[WhiteElo "2841"]
[BlackElo "2448"]
[WhiteTeam "AZE"]
[BlackTeam "IRI"]
[WhiteClock "0:02:06"]
[BlackClock "0:00:00"]

1. c4 {[%clk 0:03:00]}  e6 {[%clk 0:02:59]} 2. e4 {[%clk 0:03:00]}  d5 {[%clk 0:02:57]} 3. exd5 {[%clk 0:03:01]}  exd5 {[%clk 0:02:57]} 4. d4 {[%clk 0:03:01]}  Nf6 {[%clk 0:02:57]} 5. Nc3 {[%clk 0:03:02]}  Be7 {[%clk 0:02:54]} 6. cxd5 {[%clk 0:02:57]}  Nxd5 {[%clk 0:02:53]} 7. Bd3 {[%clk 0:02:58]}  Nf6 {[%clk 0:02:44]} 8. h3 {[%clk 0:02:56]}  O-O {[%clk 0:02:38]} 9. Nf3 {[%clk 0:02:57]}  Nc6 {[%clk 0:02:33]} 10. O-O {[%clk 0:02:56]}  Nb4 {[%clk 0:02:25]} 11. Bb1 {[%clk 0:02:54]}  Nbd5 {[%clk 0:02:24]} 12. Re1 {[%clk 0:02:54]}  c6 {[%clk 0:02:22]} 13. Bg5 {[%clk 0:02:53]}  h6 {[%clk 0:02:21]} 14. Bh4 {[%clk 0:02:52]}  Nxc3 {[%clk 0:02:07]} 15. bxc3 {[%clk 0:02:51]}  Nd5 {[%clk 0:02:07]} 16. Qd3 {[%clk 0:02:48]}  g6 {[%clk 0:02:06]} 17. Rxe7 {[%clk 0:02:19]}  Nxe7 {[%clk 0:02:07]} 18. Qe3 {[%clk 0:02:19]}  Re8 {[%clk 0:01:25]} 19. Qxh6 {[%clk 0:02:18]}  Qd6 {[%clk 0:00:58]} 20. Ng5 {[%clk 0:02:16]}  Qf6 {[%clk 0:00:55]} 21. Ne4 {[%clk 0:02:13]}  Qg7 {[%clk 0:00:45]} 22. Nf6+ {[%clk 0:02:12]}  Kf8 {[%clk 0:00:45]} 23. Qxg7+ {[%clk 0:02:12]}  Kxg7 {[%clk 0:00:46]} 24. Nxe8+ {[%clk 0:02:12]}  Kf8 {[%clk 0:00:46]} 25. Nf6 {[%clk 0:02:09]}  Nf5 {[%clk 0:00:44]} 26. Bxf5 {[%clk 0:02:09]}  Bxf5 {[%clk 0:00:45]} 27. Re1 {[%clk 0:02:09]}  Kg7 {[%clk 0:00:39]} 28. g4 {[%clk 0:02:08]}  Be6 {[%clk 0:00:38]} 29. a3 {[%clk 0:02:08]}  Rh8 {[%clk 0:00:37]} 30. Bg5 {[%clk 0:02:02]}  Rxh3 {[%clk 0:00:36]} 31. Re3 {[%clk 0:02:03]}  Rh8 {[%clk 0:00:24]} 32. f3 {[%clk 0:02:03]}  Rc8 {[%clk 0:00:16]} 33. Kg2 {[%clk 0:02:01]}  b5 {[%clk 0:00:16]} 34. Re1 {[%clk 0:02:02]}  a5 {[%clk 0:00:15]} 35. Rh1 {[%clk 0:02:02]}  Rh8 {[%clk 0:00:11]} 36. Rxh8 {[%clk 0:02:02]}  Kxh8 {[%clk 0:00:11]} 37. Bh6 {[%clk 0:02:03]}  Bc4 {[%clk 0:00:07]} 38. Kg3 {[%clk 0:02:04]}  Bd5 {[%clk 0:00:04]} 39. Kf4 {[%clk 0:02:04]}  Bc4 {[%clk 0:00:04]} 40. Ke5 {[%clk 0:02:04]}  Be2 {[%clk 0:00:04]} 41. Kd6 {[%clk 0:02:04]}  Bxf3 {[%clk 0:00:05]} 42. Ke7 {[%clk 0:02:05]}  Bd5 {[%clk 0:00:00]} 43. Kf8 {[%clk 0:02:06]} 1-0

[Event "January 2 Early 2024"]
[Site "https://www.chess.com"]
[Date "2024.01.02"]
[Round "1"]
[White "Finek, Vaclav"]
[Black "Kukreja Sankalp"]
[Result "1-0"]
[Board "95"]
[TimeControl "180+1"]
[WhiteFideId "23718293"]
[BlackFideId "45027676"]
[WhiteElo "2838"]
[BlackElo "2441"]
[WhiteTeam "CZE"]
[BlackTeam "IND"]
[WhiteClock "0:00:31"]
[BlackClock "0:00:03"]

1. d4 {[%clk 0:03:00]}  d5 {[%clk 0:02:52]} 2. c4 {[%clk 0:02:57]}  c6 {[%clk 0:02:51]} 3. Nf3 {[%clk 0:02:56]}  Nf6 {[%clk 0:02:31]} 4. Qc2 {[%clk 0:02:53]}  dxc4 {[%clk 0:02:23]} 5. Qxc4 {[%clk 0:02:52]}  Bf5 {[%clk 0:02:22]} 6. g3 {[%clk 0:02:49]}  e6 {[%clk 0:02:21]} 7. Bg2 {[%clk 0:02:46]}  Be7 {[%clk 0:02:19]} 8. O-O {[%clk 0:02:46]}  O-O {[%clk 0:02:19]} 9. e3 {[%clk 0:02:46]}  Nbd7 {[%clk 0:02:20]} 10. Rd1 {[%clk 0:02:46]}  Qc7 {[%clk 0:02:18]} 11. Nc3 {[%clk 0:02:45]}  Rac8 {[%clk 0:02:16]} 12. Qe2 {[%clk 0:02:42]}  Ne4 {[%clk 0:02:13]} 13. Nh4 {[%clk 0:02:37]}  Nxc3 {[%clk 0:01:58]} 14. bxc3 {[%clk 0:02:38]}  Bxh4 {[%clk 0:01:58]} 15. gxh4 {[%clk 0:02:38]}  Nf6 {[%clk 0:01:41]} 16. e4 {[%clk 0:02:36]}  Bg4 {[%clk 0:01:40]} 17. f3 {[%clk 0:02:33]}  Bh5 {[%clk 0:01:40]} 18. Bg5 {[%clk 0:02:25]}  e5 {[%clk 0:01:36]} 19. Qe3 {[%clk 0:02:15]}  Nd7 {[%clk 0:01:28]} 20. Qf2 {[%clk 0:02:13]}  f6 {[%clk 0:01:28]} 21. Be3 {[%clk 0:02:11]}  Rcd8 {[%clk 0:01:24]} 22. Qg3 {[%clk 0:02:10]}  f5 {[%clk 0:01:20]} 23. dxe5 {[%clk 0:02:06]}  Qxe5 {[%clk 0:01:17]} 24. Qxe5 {[%clk 0:01:52]}  Nxe5 {[%clk 0:01:18]} 25. Rxd8 {[%clk 0:01:52]}  Rxd8 {[%clk 0:01:17]} 26. f4 {[%clk 0:01:52]}  Nc4 {[%clk 0:01:12]} 27. Bxa7 {[%clk 0:01:47]}  fxe4 {[%clk 0:01:11]} 28. Bxe4 {[%clk 0:01:45]}  Nd2 {[%clk 0:00:49]} 29. Bg2 {[%clk 0:01:34]}  Nf3+ {[%clk 0:00:46]} 30. Bxf3 {[%clk 0:01:21]}  Bxf3 {[%clk 0:00:47]} 31. Bd4 {[%clk 0:01:20]}  Bd5 {[%clk 0:00:41]} 32. a4 {[%clk 0:01:19]}  Ra8 {[%clk 0:00:39]} 33. a5 {[%clk 0:01:17]}  Bc4 {[%clk 0:00:23]} 34. Rb1 {[%clk 0:01:06]}  Ba6 {[%clk 0:00:20]} 35. Re1 {[%clk 0:01:02]}  Rf8 {[%clk 0:00:16]} 36. Be5 {[%clk 0:00:55]}  Rf7 {[%clk 0:00:15]} 37. Rd1 {[%clk 0:00:54]}  h6 {[%clk 0:00:15]} 38. Kg2 {[%clk 0:00:51]}  Kh7 {[%clk 0:00:16]} 39. Kg3 {[%clk 0:00:50]}  Kg6 {[%clk 0:00:16]} 40. Rd6+ {[%clk 0:00:46]}  Kf5 {[%clk 0:00:16]} 41. h5 {[%clk 0:00:47]}  Be2 {[%clk 0:00:15]} 42. Rg6 {[%clk 0:00:46]}  Bxh5 {[%clk 0:00:15]} 43. Rxg7 {[%clk 0:00:46]}  Rxg7+ {[%clk 0:00:09]} 44. Bxg7 {[%clk 0:00:47]}  Kg6 {[%clk 0:00:10]} 45. Bf8 {[%clk 0:00:47]}  Be2 {[%clk 0:00:09]} 46. Kf2 {[%clk 0:00:45]}  Bc4 {[%clk 0:00:09]} 47. Ke3 {[%clk 0:00:45]}  h5 {[%clk 0:00:08]} 48. Ke4 {[%clk 0:00:45]}  Kf6 {[%clk 0:00:05]} 49. Bd6 {[%clk 0:00:41]}  Bd5+ {[%clk 0:00:05]} 50. Kd4 {[%clk 0:00:41]}  Kf5 {[%clk 0:00:06]} 51. Kc5 {[%clk 0:00:41]}  Be4 {[%clk 0:00:05]} 52. Kb6 {[%clk 0:00:41]}  c5 {[%clk 0:00:05]} 53. Kxc5 {[%clk 0:00:41]}  Kg4 {[%clk 0:00:06]} 54. Kd4 {[%clk 0:00:39]}  Bc6 {[%clk 0:00:05]} 55. Ke5 {[%clk 0:00:38]}  Bd7 {[%clk 0:00:05]} 56. Kf6 {[%clk 0:00:35]}  Bf5 {[%clk 0:00:03]} 57. c4 {[%clk 0:00:35]}  Bd3 {[%clk 0:00:03]} 58. c5 {[%clk 0:00:35]}  Be4 {[%clk 0:00:03]} 59. Ke7 {[%clk 0:00:30]}  Kh3 {[%clk 0:00:03]} 60. Ke6 {[%clk 0:00:29]}  Kxh2 {[%clk 0:00:03]} 61. f5+ {[%clk 0:00:29]}  Kg2 {[%clk 0:00:04]} 62. f6 {[%clk 0:00:29]}  Bg6 {[%clk 0:00:04]} 63. f7 {[%clk 0:00:30]}  Bxf7+ {[%clk 0:00:04]} 64. Kxf7 {[%clk 0:00:31]}  h4 {[%clk 0:00:03]} 65. Ke8 {[%clk 0:00:31]} 1-0